bitfinex-derivatives/quotes_SOLF0:USTF0_20240925
["timestamp","ask_amount","ask_price","bid_price","bid_amount"]
[1727258124719,11.523,150.01,149.98,3.3335]
[1727258124917,3.3331,150.0,149.98,3.3335]
[1727258126523,11.523,150.01,149.98,3.3335]
[1727258127022,11.523,150.01,149.99,3.3333]
[1727258127523,8.19,150.03,150.01,3.3329]
[1727258128025,11.5227,150.03,150.0,3.333]
[1727258128223,8.19,150.03,150.0,3.333]
[1727258128627,3.3327,150.02,150.0,3.333]
[1727258129319,3.3329,150.01,149.99,3.3332]
[1727258137539,11.5228,150.02,149.97,71.72139294]
[1727258137738,8.19,150.03,149.99,8.19]
[1727258138540,11.5226,150.03,150.0,3.3331]
[1727258139433,8.19,150.03,150.0,3.3331]
[1727258139642,3.3327,150.02,150.0,3.3331]
[1727258142042,8.19,150.02,149.99,3.3333]
[1727258142238,8.19,150.02,149.98,8.19]
[1727258142644,11.5228,150.02,150.0,3.3331]
[1727258143341,8.19,150.02,150.0,3.3331]
[1727258144849,11.5226,150.03,150.0,3.3331]
[1727258146938,3.3326,150.03,150.0,3.3331]
[1727258152053,3.3327,150.02,150.0,3.3331]
[1727258152445,8.19,150.03,149.99,11.5232]
[1727258152650,3.3328,150.02,149.99,3.3332]
[1727258156956,3.3329,150.01,149.99,3.3332]
[1727258160758,3.3331,150.0,149.98,3.3335]
[1727258160958,3.3331,150.0,149.98,11.5235]
[1727258161158,8.19,150.03,149.98,8.19]
[1727258162860,3.333,150.01,149.99,3.3333]
[1727258166060,3.333,150.01,149.98,11.5234]
[1727258166659,3.333,150.01,149.99,3.3333]
[1727258177575,3.333,150.01,149.98,3.3335]
[1727258177772,8.19,150.01,149.95,63.54398317]
[1727258177979,8.19,149.99,149.96,4.67789436]
[1727258178173,8.19,149.99,149.95,11.5242]
[1727258178374,10.87100933,150.06,149.96,8.19]
[1727258178575,8.19,150.01,149.96,8.19]
[1727258178770,8.19,150.01,149.96,11.5238]
[1727258178975,3.3333,150.0,149.96,8.19]
[1727258179172,10.87100933,150.06,149.96,8.19]
[1727258179377,8.19,150.02,149.96,8.19]
[1727258179575,3.333,150.01,149.98,3.3335]
[1727258179777,8.19,150.02,149.98,3.3335]
[1727258180784,3.3331,150.0,149.98,3.3335]
[1727258182078,8.19,150.02,149.94,1.3188]
[1727258182282,8.19,150.02,149.97,8.19]
[1727258183078,3.3333,150.0,149.97,11.5236]
[1727258183480,3.3333,150.0,149.97,3.3336]
[1727258183680,3.3333,150.0,149.97,11.5236]
[1727258184084,3.3333,150.0,149.94,1.3188]
[1727258184085,3.333,150.01,149.98,8.19]
[1727258184286,3.333,150.01,149.94,1.3188]
[1727258184480,3.333,150.01,149.98,8.19]
[1727258184681,8.19,150.03,149.99,8.19]
[1727258185274,3.3327,150.02,149.99,11.5232]
[1727258185480,8.19,150.03,149.99,11.5232]
[1727258185885,3.3327,150.02,149.99,11.5232]
[1727258186482,3.3329,150.01,149.99,11.5232]
[1727258186876,98.98367511,150.07,149.99,8.19]
[1727258187079,3.3325,150.03,150.0,8.19]
[1727258187283,8.19,150.05,150.01,8.19]
[1727258188185,3.3325,150.03,150.01,11.5228]
[1727258188384,8.19,150.05,150.01,8.19]
[1727258188786,3.3323,150.04,150.01,11.5228]
[1727258190087,3.3325,150.03,150.01,11.5228]
[1727258190383,3.3325,150.03,150.01,8.19]
[1727258190589,3.3325,150.03,150.0,3.3331]
[1727258195293,3.3325,150.03,150.0,11.5231]
[1727258195687,3.3325,150.03,150.01,3.3328]
[1727258205597,3.3325,150.03,150.0,11.523]
[1727258207504,3.3328,150.02,150.0,3.333]
[1727258211206,3.3326,150.03,150.01,3.3329]
[1727258213113,98.98367511,150.07,150.02,8.19]
[1727258213300,107.17367511,150.07,150.02,8.19]
[1727258213700,3.332,150.06,150.03,3.3323]
[1727258214506,3.3321,150.05,150.03,3.3323]
[1727258215403,3.3322,150.04,150.02,3.3325]
[1727258216506,3.3322,150.04,150.01,11.5228]
[1727258220413,3.3325,150.03,150.01,11.5228]
[1727258223014,8.19,150.06,150.02,3.3325]
[1727258223416,3.3322,150.05,150.02,3.3325]
[1727258223615,3.3322,150.05,150.03,8.19]
[1727258224215,3.3322,150.05,150.03,11.5224]
[1727258225221,3.3322,150.05,150.03,8.19]
[1727258226018,3.3322,150.04,150.01,11.5228]
[1727258227021,3.3322,150.04,150.02,3.3326]
[1727258227815,3.3319,150.06,150.02,8.19]
[1727258228211,3.332,150.05,150.03,3.3323]
[1727258228407,208.13807636,150.08,150.03,3.3323]
[1727258228611,3.332,150.06,150.03,3.3323]
[1727258229213,3.332,150.06,150.04,3.3321]
[1727258230222,3.332,150.06,150.03,3.3323]
[1727258230610,3.332,150.06,150.02,8.19]
[1727258230812,196.6090741,150.08,150.05,3.332]
[1727258231012,195.2954741,150.08,150.05,11.522]
[1727258231818,3.3316,150.07,150.05,11.522]
[1727258232015,1.3283,150.14,150.06,8.19]
[1727258232223,9.5183,150.14,150.1,8.19]
[1727258233316,3.3303,150.13,150.1,8.19]
[1727258233812,3.3303,150.13,150.1,11.5208]
[1727258235922,3.3305,150.12,150.1,8.19]
[1727258236117,3.3305,150.12,150.09,3.3311]
[1727258236118,3.3305,150.12,150.09,11.5211]
[1727258236415,8.19,150.13,150.09,11.5211]
[1727258236929,3.3309,150.1,150.08,8.19]
[1727258240416,3.3309,150.1,150.08,11.5213]
[1727258241326,3.3311,150.09,150.07,3.3315]
[1727258241719,3.3315,150.08,150.06,8.19]
[1727258242018,8.19,150.1,150.05,8.19]
[1727258242216,8.19,150.1,150.05,11.5219]
[1727258242420,8.19,150.1,150.05,3.3319]
[1727258243221,3.3315,150.08,150.05,3.3319]
[1727258243422,8.19,150.09,150.05,3.3319]
[1727258243620,8.19,150.09,150.04,9.5062]
[1727258243932,8.19,150.09,150.04,3.3321]
[1727258243933,3.3317,150.07,150.04,3.3321]
[1727258244828,3.3319,150.06,150.03,11.5224]
[1727258247630,8.19,150.07,150.03,3.3324]
[1727258248226,3.3319,150.06,150.03,3.3324]
[1727258249021,3.3319,150.06,150.02,8.19]
[1727258249221,3.3317,150.07,150.04,3.3322]
[1727258253245,11.5215,150.08,150.05,3.3319]
[1727258253833,8.19,150.08,150.05,3.3319]
[1727258254130,8.19,150.09,150.05,3.3319]
[1727258254827,3.3315,150.08,150.05,3.3319]
[1727258255229,2.6539,150.13,150.05,8.19]
[1727258255429,8.19,150.11,150.07,8.19]
[1727258255734,3.3309,150.1,150.07,11.5214]
[1727258256732,3.3309,150.1,150.08,3.3313]
[1727258257137,9.5652,150.13,150.09,11.521]
[1727258257330,9.5183,150.14,150.09,8.19]
[1727258257528,3.3305,150.12,150.1,8.19]
[1727258258736,8.19,150.15,150.1,8.19]
[1727258259239,3.3304,150.13,150.1,11.5208]
[1727258259437,3.3304,150.13,150.1,11.48891905]
[1727258262637,3.33,150.14,150.11,8.19]
[1727258262834,3.33,150.14,150.1,8.19]
[1727258263032,3.3303,150.13,150.1,11.5207]
[1727258266132,3.3303,150.13,150.1,3.3307]
[1727258266333,3.3303,150.13,150.1,11.5207]
[1727258268943,3.3299,150.15,150.12,3.3305]
[1727258269132,3.3299,150.15,150.12,11.5205]
[1727258269436,3.3299,150.15,150.05,2.7835]
[1727258269437,8.19,150.15,150.11,3.3306]
[1727258269625,8.19,150.15,150.1,8.19]
[1727258270025,3.3304,150.13,150.1,11.5207]
[1727258270229,3.3304,150.13,150.1,8.19]
[1727258270525,8.19,150.16,150.1,8.19]
[1727258270725,3.3302,150.14,150.11,3.3305]
[1727258271435,3.3302,150.14,150.1,8.19]
[1727258271436,3.3304,150.13,150.1,11.5208]
[1727258272130,3.3304,150.13,150.11,3.3306]
[1727258279335,3.3302,150.14,150.12,3.3304]
[1727258279939,3.33,150.15,150.12,3.3304]
[1727258280241,8.19,150.16,150.12,3.3304]
[1727258280542,3.3304,150.13,150.1,8.19]
[1727258281144,3.3304,150.13,150.11,3.3306]
[1727258281344,8.19,150.12,150.05,2.7835]
[1727258281547,8.19,150.12,150.07,8.19]
[1727258282443,8.19,150.11,150.07,8.19]
[1727258282837,3.3309,150.1,150.07,11.5215]
[1727258283242,8.19,150.11,150.07,11.5215]
[1727258283440,8.19,150.11,150.07,8.19]
[1727258283743,8.19,150.1,150.05,9.5857]
[1727258284041,3.3315,150.08,150.05,12.9177]
[1727258284444,3.3317,150.07,150.04,3.3321]
[1727258284642,3.3317,150.07,150.04,11.5221]
[1727258284842,3.3317,150.07,150.04,8.19]
[1727258285843,3.3317,150.07,150.05,3.332]
[1727258290747,8.19,150.06,150.0,1.2991]
[1727258290944,8.19,150.06,149.88,353.11413904]
[1727258290945,8.19,150.01,149.89,1.2743]
[1727258291153,97.70111552,150.03,149.93,8.19]
[1727258291350,8.19,149.98,149.93,7.98740035]
[1727258291645,97.70111552,150.03,149.93,4.65290035]
[1727258291846,3.3336,149.98,149.93,3.3347]
[1727258292148,8.19,149.96,149.9,1.3698]
[1727258292441,97.70111552,150.03,149.9,1.3698]
[1727258292442,8.19,149.98,149.92,8.19]
[1727258292646,8.19,149.98,149.93,8.19]
[1727258293438,3.334,149.97,149.93,8.19]
[1727258294651,3.3336,149.98,149.94,8.19]
[1727258295454,3.3338,149.97,149.94,8.19]
[1727258296958,8.19,149.98,149.88,127.11413904]
[1727258297150,8.19,149.97,149.92,8.19]
[1727258297757,3.3344,149.95,149.92,8.19]
[1727258297958,3.3344,149.95,149.94,8.19]
[1727258298153,1.2858,149.98,149.94,8.19]
[1727258298454,3.3342,149.96,149.94,8.19]
[1727258299255,8.19,149.95,149.89,1.4134]
[1727258299459,8.19,149.95,149.9,8.19]
[1727258299766,3.3348,149.93,149.91,8.19]
[1727258299963,3.3348,149.93,149.89,1.4134]
[1727258299964,1.2858,149.98,149.92,8.19]
[1727258300161,9.4758,149.98,149.92,8.19]
[1727258300660,3.3346,149.94,149.92,8.19]
[1727258301353,3.3347,149.93,149.89,4.7489]
[1727258301554,3.3347,149.93,149.91,8.19]
[1727258302758,9.4758,149.98,149.91,8.19]
[1727258302759,3.3345,149.94,149.91,8.19]
[1727258303459,1.2858,149.98,149.93,8.19]
[1727258303661,1.3654,149.99,149.97,8.19]
[1727258303958,1.3654,149.99,149.89,1.4134]
[1727258304165,1.3654,149.99,149.95,8.19]
[1727258304560,3.3342,149.96,149.95,8.19]
[1727258306867,3.3338,149.97,149.95,8.19]
[1727258309865,3.334,149.96,149.95,8.19]
[1727258310459,3.3344,149.95,149.92,3.3349]
[1727258310661,3.3344,149.95,149.94,8.19]
[1727258310969,3.3344,149.95,149.89,1.4134]
[1727258311171,3.3344,149.95,149.94,8.19]
[1727258311474,3.3347,149.93,149.9,3.3352]
[1727258311770,3.3347,149.93,149.92,8.19]
[1727258311978,3.3345,149.94,149.92,8.19]
[1727258312180,3.3345,149.94,149.93,8.19]
[1727258313482,1.3654,149.99,149.93,8.19]
[1727258313685,1.3654,149.99,149.95,8.19]
[1727258314271,3.3343,149.95,149.92,3.3349]
[1727258314486,3.3343,149.95,149.94,8.19]
[1727258315883,3.3341,149.96,149.94,8.19]
[1727258317078,3.3343,149.95,149.93,3.3347]
[1727258319482,3.3341,149.96,149.92,8.19]
[1727258320484,3.3341,149.96,149.93,3.3345]
[1727258321687,3.3342,149.95,149.93,3.3345]
[1727258327995,3.3341,149.96,149.94,3.3344]
[1727258328992,8.19,149.95,149.89,1.4134]
[1727258329198,8.19,149.93,149.89,1.4134]
[1727258329594,3.335,149.92,149.89,12.9388]
[1727258330291,8.19,149.94,149.89,9.6034]
[1727258330692,3.3348,149.93,149.9,11.5252]
[1727258331197,3.335,149.92,149.9,8.19]
[1727258332187,3.3347,149.93,149.9,8.19]
[1727258333394,3.3347,149.93,149.9,11.5253]
[1727258333794,3.3347,149.93,149.9,8.19]
[1727258334997,3.3345,149.94,149.91,8.19]
[1727258336901,3.3347,149.93,149.91,8.19]
[1727258337203,3.3347,149.93,149.9,11.5253]
[1727258337499,3.3347,149.93,149.89,3.3356]
[1727258337699,3.3347,149.93,149.9,8.19]
[1727258338803,3.3351,149.92,149.9,8.19]
[1727258339803,3.3347,149.93,149.9,11.5253]
[1727258340501,9.5725,149.97,149.92,8.19]
[1727258341103,9.5725,149.97,149.88,3.26770339]
[1727258341306,8.19,149.96,149.9,8.19]
[1727258341802,3.3348,149.93,149.9,11.5253]
[1727258345105,3.335,149.92,149.9,8.19]
[1727258348399,8.19,149.96,149.9,11.5253]
[1727258349009,3.3349,149.93,149.9,11.5253]
[1727258349308,8.19,149.96,149.9,11.5253]
[1727258349703,3.335,149.92,149.9,11.5253]
[1727258350707,3.3347,149.93,149.91,11.5251]
[1727258350908,9.5725,149.97,149.89,3.31008743]
[1727258351110,9.5725,149.97,149.91,8.19]
[1727258352013,3.3348,149.93,149.91,8.19]
[1727258352608,3.3348,149.93,149.9,3.3352]
[1727258352908,3.3348,149.93,149.91,8.19]
[1727258356113,8.19,149.96,149.88,3.28973306]
[1727258356311,8.19,149.96,149.9,8.19]
[1727258356911,3.335,149.92,149.9,8.19]
[1727258358215,3.3348,149.93,149.9,8.19]
[1727258358612,3.3348,149.93,149.92,8.19]
[1727258361316,3.3348,149.93,149.91,11.5251]
[1727258362626,3.3346,149.94,149.92,3.3349]
[1727258363332,3.3346,149.94,149.91,11.525]
[1727258368435,3.3346,149.94,149.92,3.3349]
[1727258370436,3.3347,149.93,149.91,11.525]
[1727258370635,8.19,149.95,149.88,3.39250594]
[1727258370826,8.19,149.95,149.89,4.67556088]
[1727258371028,3.3348,149.93,149.9,8.01086088]
[1727258371228,8.19,149.95,149.9,3.3353]
[1727258372128,8.19,149.95,149.9,11.5253]
[1727258373526,3.3348,149.93,149.9,11.5253]
[1727258377429,3.3346,149.94,149.91,3.3351]
[1727258377637,3.3346,149.94,149.91,11.5251]
[1727258377837,1.3825,149.97,149.91,11.5251]
[1727258378543,3.3347,149.94,149.91,11.5251]
[1727258379140,1.3825,149.97,149.9,3.3353]
[1727258379335,1.3825,149.97,149.9,8.19]
[1727258379739,3.3348,149.93,149.9,11.5252]
[1727258380048,3.3348,149.93,149.9,14.87666352]
[1727258380247,3.3348,149.93,149.91,3.3351]
[1727258383644,1.3825,149.97,149.92,8.19]
[1727258383849,1.3825,149.97,149.93,8.19]
[1727258384049,1.3825,149.97,149.95,8.19]
[1727258384249,1.3825,149.97,149.92,11.5248]
[1727258384747,3.3344,149.95,149.92,11.5248]
[1727258385649,9.5725,149.97,149.92,11.5248]
[1727258386646,3.3344,149.95,149.92,11.5248]
[1727258388448,3.3344,149.95,149.93,3.3347]
[1727258389055,3.3346,149.94,149.9,3.29073409]
[1727258389354,3.3346,149.94,149.92,8.19]
[1727258389556,3.3346,149.94,149.92,3.3348]
[1727258389752,3.3343,149.95,149.92,11.5248]
[1727258392453,3.3343,149.95,149.92,3.3348]
[1727258392653,3.3343,149.95,149.92,11.5248]
[1727258393450,3.3343,149.95,149.93,3.3345]
[1727258395455,3.3343,149.95,149.92,11.5248]
[1727258396456,3.3345,149.94,149.92,11.5248]
[1727258400348,3.3345,149.94,149.92,3.3348]
[1727258400755,3.3346,149.94,149.91,3.335]
[1727258401361,3.3347,149.93,149.91,3.335]
[1727258401658,1.3654,149.99,149.92,8.19]
[1727258401853,3.3342,149.96,149.93,8.19]
[1727258402260,1.3654,149.99,149.9,1.3641]
[1727258402456,9.5554,149.99,149.93,8.19]
[1727258403265,3.3343,149.95,149.93,11.5245]
[1727258403666,3.3343,149.95,149.93,8.19]
[1727258406555,3.3343,149.95,149.93,11.5246]
[1727258406754,3.3341,149.96,149.93,8.19]
[1727258406953,1.3654,149.99,149.95,8.19]
[1727258407159,1.3654,149.99,149.94,3.3343]
[1727258408260,1.3654,149.99,149.93,3.3346]
[1727258408458,1.3654,149.99,149.93,11.5246]
[1727258408851,3.3341,149.96,149.93,11.5246]
[1727258409053,8.19,149.98,149.93,8.19]
[1727258409561,3.3342,149.96,149.93,8.19]
[1727258409753,3.3342,149.96,149.93,11.5246]
[1727258409956,3.3342,149.96,149.94,8.19]
[1727258410160,1.3654,149.99,149.93,3.3345]
[1727258410361,8.19,149.98,149.93,3.3345]
[1727258410656,3.3343,149.95,149.92,8.19]
[1727258410863,3.3343,149.95,149.92,11.5248]
[1727258411965,3.3343,149.95,149.93,3.3346]
[1727258412158,3.3343,149.95,149.9,1.3641]
[1727258412355,3.3343,149.95,149.91,8.19]
[1727258412762,3.3343,149.95,149.92,3.3348]
[1727258413259,3.3343,149.95,149.93,3.3346]
[1727258413465,3.3341,149.96,149.93,3.3346]
[1727258413859,3.3341,149.96,149.94,3.3344]
[1727258414163,3.3341,149.96,149.91,8.19]
[1727258414364,3.3343,149.95,149.93,3.3346]
[1727258415462,3.3341,149.96,149.93,3.3346]
[1727258418467,9.5554,149.99,149.94,3.3343]
[1727258419066,3.334,149.97,149.94,3.3343]
[1727258420160,3.3341,149.96,149.94,3.3343]
[1727258421770,3.3341,149.96,149.93,3.3346]
[1727258423667,3.3337,149.98,149.95,8.19]
[1727258423876,1.376,150.01,149.95,8.19]
[1727258423877,12.93914456,150.01,149.95,8.19]
[1727258424370,3.3335,149.99,149.96,3.3339]
[1727258428072,3.3335,149.99,149.96,11.5239]
[1727258428475,8.19,150.0,149.97,3.3337]
[1727258428476,3.3333,150.0,149.97,3.3337]
[1727258430375,3.3334,149.99,149.96,3.3339]
[1727258433678,8.19,150.0,149.96,3.3339]
[1727258434078,3.3337,149.98,149.95,11.5241]
[1727258434479,3.39949296,150.02,149.96,8.19]
[1727258434681,3.3333,150.0,149.97,3.3338]
[1727258440184,3.333,150.01,149.98,3.3335]
[1727258440683,8.19,150.02,149.98,3.3335]
[1727258441785,3.3329,150.01,149.98,11.5235]
[1727258441986,4.65672414,150.03,149.98,8.19]
[1727258442383,3.3327,150.02,149.98,8.19]
[1727258443188,3.3327,150.02,149.99,3.3332]
[1727258443399,86.7009,150.13,150.01,8.19]
[1727258443580,109.15575632,150.06,149.95,4.66590193]
[1727258443791,8.19,150.04,149.96,1.3109]
[1727258443986,8.19,150.02,149.96,1.3109]
[1727258444176,8.19,150.02,149.97,8.19]
[1727258444583,11.5228,150.02,149.98,3.3335]
[1727258446090,3.3329,150.01,149.98,3.3335]
[1727258448192,3.3331,150.0,149.97,3.3337]
[1727258448388,3.3331,150.0,149.97,11.5237]
[1727258448588,8.19,150.02,149.97,8.19]
[1727258449185,3.333,150.01,149.98,3.3335]
[1727258450385,3.333,150.01,149.98,3.3334]
[1727258452088,11.5227,150.02,149.99,3.3333]
[1727258452594,11.5227,150.02,149.98,8.19]
[1727258452893,11.5227,150.02,149.99,3.3333]
[1727258453492,11.5225,150.03,150.0,3.3331]
[1727258453696,8.19,150.03,150.0,3.3331]
[1727258454392,11.5227,150.03,150.0,3.3331]
[1727258456395,3.3327,150.02,150.0,3.3331]
[1727258458995,11.5226,150.03,150.0,3.3331]
[1727258459301,3.3326,150.03,150.0,3.3331]
[1727258459595,3.3324,150.04,150.01,3.3327]
[1727258459802,97.6925742,150.06,150.01,8.19]
[1727258460003,8.19,150.05,150.01,8.19]
[1727258460397,3.3324,150.04,150.01,11.5228]
[1727258460597,3.3324,150.04,150.01,3.3328]
[1727258460899,3.3325,150.03,150.01,3.3328]
[1727258461100,8.19,150.04,150.0,8.19]
[1727258461302,8.19,150.02,149.98,8.19]
[1727258461502,11.5227,150.02,149.98,8.19]
[1727258461703,3.3327,150.02,150.0,3.3331]
[1727258462704,8.19,150.02,149.96,3.9643]
[1727258463009,97.6925742,150.06,149.95,8.19]
[1727258463010,8.19,150.0,149.95,8.19]
[1727258463209,8.19,150.0,149.91,6.01060103]
[1727258463422,3.3338,149.97,149.94,11.5243]
[1727258464112,3.3338,149.97,149.95,3.3342]
[1727258464405,11.5237,149.98,149.95,3.3342]
[1727258466711,3.3337,149.98,149.95,11.5242]
[1727258467209,3.3334,149.99,149.96,11.524]
[1727258468208,1.3147,150.05,149.97,8.19]
[1727258468730,8.19,150.02,149.93,3.3958236]
[1727258469016,3.3331,150.01,149.97,11.5237]
[1727258469711,3.3331,150.0,149.97,11.5237]
[1727258470920,8.19,150.02,149.98,3.3335]
[1727258471120,8.19,150.03,149.98,8.19]
[1727258472123,3.3328,150.02,149.99,3.3332]
[1727258478728,3.3329,150.01,149.98,11.5235]
[1727258479424,3.3328,150.02,150.0,8.19]
[1727258479617,9.5047,150.05,150.0,8.19]
[1727258479618,8.19,150.05,150.0,8.19]
[1727258480220,3.3323,150.04,150.01,3.3329]
[1727258480627,3.3323,150.04,150.01,11.5229]
[1727258481324,3.3321,150.05,150.03,8.19]
[1727258481725,8.19,150.05,150.0,8.19]
[1727258481921,8.19,150.05,150.0,11.5231]
[1727258482428,8.19,150.05,150.0,8.19]
[1727258482628,3.3326,150.03,150.0,11.5231]
[1727258485544,1.3737,150.13,150.04,3.3321]
[1727258485725,1.3737,150.13,149.96,1.3103]
[1727258485726,8.19,150.11,150.06,8.19]
[1727258485927,1.2802,150.12,150.07,8.19]
[1727258486333,8.19,150.11,150.03,63.50615352]
[1727258486634,8.19,150.08,150.03,8.19]
[1727258487332,3.3316,150.07,150.03,8.19]
[1727258487536,8.19,150.08,150.01,2.7579]
[1727258487729,8.19,150.08,150.04,8.19]
[1727258488130,11.5215,150.08,150.04,8.19]
[1727258489036,20.02,150.19,150.07,8.19]
[1727258489241,1.0176687,150.13,150.09,8.19]
[1727258489539,3.3312,150.09,150.02,1.4017]
[1727258489737,8.19,150.1,150.05,8.19]
[1727258490443,8.19,150.09,150.05,8.19]
[1727258490831,8.19,150.08,150.02,3.3325]
[1727258491033,8.19,150.08,150.01,2.7579]
[1727258491334,8.19,150.06,150.01,8.19]
[1727258491839,3.3321,150.05,150.01,8.19]
[1727258492137,1.292,150.07,150.02,8.19]
[1727258492641,3.3318,150.06,150.02,8.19]
[1727258493145,1.292,150.07,150.04,8.19]
[1727258493743,8.19,150.05,149.81,13.3488]
[1727258493954,1.3971,150.06,149.97,8.19]
[1727258494138,8.19,150.03,149.98,8.19]
[1727258494441,1.3971,150.06,150.01,8.19]
[1727258494840,3.3322,150.05,150.01,8.19]
[1727258495039,9.5871,150.06,150.0,8.19]
[1727258495339,3.3324,150.04,150.0,8.19]
[1727258495837,3.3323,150.04,150.0,8.19]
[1727258498539,3.3323,150.04,150.01,8.19]
[1727258498846,3.3326,150.03,150.01,8.19]
[1727258500643,3.3323,150.04,150.01,8.19]
[1727258503049,3.3325,150.03,150.01,8.19]
[1727258503452,9.5871,150.06,150.01,8.19]
[1727258503845,1.3971,150.06,150.02,8.19]
[1727258504847,3.3322,150.05,150.02,8.19]
[1727258505248,3.3322,150.04,150.01,3.3328]
[1727258505448,3.3322,150.04,150.02,8.19]
[1727258506252,3.3321,150.05,150.02,8.19]
[1727258509149,3.3322,150.04,150.02,8.19]
[1727258522156,1.3971,150.06,149.97,1.3099]
[1727258522157,1.292,150.07,150.03,8.19]
[1727258522358,2.6183,150.11,150.06,8.19]
[1727258522660,3.3314,150.08,150.05,3.3318]
[1727258522855,3.3314,150.08,150.07,8.19]
[1727258523967,6.0253074,150.11,150.06,8.19]
[1727258524358,6.0253074,150.11,150.09,8.19]
[1727258524568,8.19,150.14,150.09,8.19]
[1727258524959,3.3308,150.11,150.09,8.19]
[1727258525463,8.19,150.13,150.06,3.3317]
[1727258525661,8.19,150.12,150.07,8.19]
[1727258526154,3.331,150.1,150.07,8.19]
[1727258528562,8.19,150.12,150.07,8.19]
[1727258528563,3.3312,150.09,150.07,8.19]
[1727258529669,3.3316,150.07,149.98,9.4468]
[1727258529862,8.19,150.09,150.04,8.19]
[1727258530464,3.3317,150.07,150.04,8.19]
[1727258531960,3.3319,150.06,150.04,8.19]
[1727258532159,8.19,150.07,150.02,8.19]
[1727258532565,8.19,150.07,150.0,3.333]
[1727258532870,8.19,150.07,150.01,8.19]
[1727258533566,8.19,150.07,150.01,11.5229]
[1727258533774,8.19,150.07,150.01,8.19]
[1727258534065,3.3329,150.02,149.99,8.19]
[1727258534869,3.3329,150.02,149.99,11.5233]
[1727258538870,3.3329,150.02,150.0,8.19]
[1727258539671,6.6639,150.06,149.89,63.56556124]
[1727258539880,1.01742538,150.05,149.9,7.29102913]
[1727258540176,8.19,150.02,149.97,8.19]
[1727258540569,3.3335,149.99,149.97,8.19]
[1727258540968,8.19,150.02,149.97,8.19]
[1727258541168,3.333,150.01,149.98,8.19]
[1727258541573,3.333,150.01,149.99,8.19]
[1727258546274,11.4888728,150.05,149.99,8.19]
[1727258546475,8.19,150.05,149.96,2.7286]
[1727258546670,8.19,150.02,149.97,8.19]
[1727258547182,3.3333,150.0,149.97,8.19]
[1727258547380,11.59370889,150.02,149.96,2.7286]
[1727258547672,3.3334,149.99,149.97,8.19]
[1727258548276,3.3336,149.98,149.97,8.19]
[1727258549474,8.19,150.02,149.97,8.19]
[1727258549675,8.19,150.02,149.98,8.19]
[1727258549871,3.3333,150.0,149.98,8.19]
[1727258550073,2.6784,150.04,149.99,8.19]
[1727258550278,4.63014856,150.04,150.01,8.19]
[1727258550474,1.3573,150.04,150.01,8.19]
[1727258550883,4.64315723,150.04,150.01,8.19]
[1727258551378,3.3328,150.02,150.01,8.19]